[Event "Titled Tuesday Blitz February 07 Late 2023"]
[White "Dourerassou, Jonathan"]
[Black "Flynn, Jacob"]
[WhiteFideId "628050"]
[BlackFideId "2509393"]
[WhiteElo "2414"]
[BlackElo "2102"]
[Result "1-0"]
[Round "07"]
[TimeControl "180+2"]
[Date "2023.02.07"]
[WhiteClock "0:00:06"]
[BlackClock "0:00:16"]

1. d4 {[%clk 0:03:00]}  Nf6 {[%clk 0:02:59]} 2. Bg5 {[%clk 0:02:59]}  d5 {[%clk 0:02:59]} 3. Bxf6 {[%clk 0:02:59]}  gxf6 {[%clk 0:02:59]} 4. e3 {[%clk 0:02:58]}  c5 {[%clk 0:03:00]} 5. c3 {[%clk 0:02:57]}  Nc6 {[%clk 0:02:59]} 6. Nf3 {[%clk 0:02:57]}  e5 {[%clk 0:02:59]} 7. dxe5 {[%clk 0:02:53]}  fxe5 {[%clk 0:02:58]} 8. Bb5 {[%clk 0:02:54]}  Qf6 {[%clk 0:02:48]} 9. Qxd5 {[%clk 0:02:51]}  Bd7 {[%clk 0:02:49]} 10. Nbd2 {[%clk 0:02:45]}  O-O-O {[%clk 0:02:46]} 11. Ne4 {[%clk 0:02:44]}  Qg6 {[%clk 0:02:38]} 12. O-O-O {[%clk 0:02:33]}  Be6 {[%clk 0:02:31]} 13. Bxc6 {[%clk 0:01:28]}  Bxd5 {[%clk 0:02:31]} 14. Bxd5 {[%clk 0:01:29]}  f5 {[%clk 0:02:31]} 15. Neg5 {[%clk 0:01:05]}  e4 {[%clk 0:02:02]} 16. Bxb7+ {[%clk 0:00:43]}  Kxb7 {[%clk 0:01:48]} 17. Rxd8 {[%clk 0:00:36]}  exf3 {[%clk 0:01:47]} 18. h4 {[%clk 0:00:29]}  h6 {[%clk 0:01:23]} 19. Nxf3 {[%clk 0:00:05]}  Qxg2 {[%clk 0:01:21]} 20. Rd7+ {[%clk 0:00:06]}  Ka6 {[%clk 0:01:06]} 21. Rg1 {[%clk 0:00:05]}  Qxf3 {[%clk 0:00:50]} 22. Rg6+ {[%clk 0:00:06]}  Kb5 {[%clk 0:00:42]} 23. b3 {[%clk 0:00:07]}  c4 {[%clk 0:00:18]} 24. a4+ {[%clk 0:00:06]}  Kc5 {[%clk 0:00:16]} 25. b4# {[%clk 0:00:06]} 1-0


[Site "https://www.chess.com"]

[Event "Titled Tuesday Blitz February 07 Late 2023"]
[White "Kalajzic, Ivan"]
[Black "Gutenev, Alexander"]
[WhiteFideId "14506378"]
[BlackFideId "4195540"]
[WhiteElo "2062"]
[BlackElo "2455"]
[Result "0-1"]
[Round "07"]
[TimeControl "180+2"]
[Date "2023.02.07"]
[WhiteClock "0:00:01"]
[BlackClock "0:01:32"]

1. b3 {[%clk 0:03:00]}  a5 {[%clk 0:02:58]} 2. a3 {[%clk 0:03:00]}  c5 {[%clk 0:02:50]} 3. e3 {[%clk 0:02:58]}  a4 {[%clk 0:02:49]} 4. Bb2 {[%clk 0:02:55]}  axb3 {[%clk 0:02:49]} 5. cxb3 {[%clk 0:02:56]}  Nf6 {[%clk 0:02:48]} 6. Nf3 {[%clk 0:02:55]}  e6 {[%clk 0:02:48]} 7. Bb5 {[%clk 0:02:49]}  Be7 {[%clk 0:02:48]} 8. O-O {[%clk 0:02:48]}  O-O {[%clk 0:02:48]} 9. d3 {[%clk 0:02:48]}  b6 {[%clk 0:02:48]} 10. Nbd2 {[%clk 0:02:48]}  Bb7 {[%clk 0:02:49]} 11. Re1 {[%clk 0:02:45]}  Na6 {[%clk 0:02:49]} 12. d4 {[%clk 0:02:33]}  Nc7 {[%clk 0:02:49]} 13. Bd3 {[%clk 0:02:28]}  d6 {[%clk 0:02:37]} 14. e4 {[%clk 0:02:20]}  Nd7 {[%clk 0:02:31]} 15. e5 {[%clk 0:02:12]}  d5 {[%clk 0:02:23]} 16. Nf1 {[%clk 0:02:00]}  Ba6 {[%clk 0:02:22]} 17. Bb1 {[%clk 0:01:56]}  Nb5 {[%clk 0:02:15]} 18. a4 {[%clk 0:01:51]}  Nxd4 {[%clk 0:02:15]} 19. Nxd4 {[%clk 0:01:51]}  cxd4 {[%clk 0:02:15]} 20. Bxd4 {[%clk 0:01:50]}  Bc5 {[%clk 0:02:15]} 21. Ng3 {[%clk 0:01:48]}  Qh4 {[%clk 0:02:13]} 22. Bxc5 {[%clk 0:01:03]}  bxc5 {[%clk 0:02:13]} 23. Bd3 {[%clk 0:00:56]}  Rfb8 {[%clk 0:02:10]} 24. Bxa6 {[%clk 0:00:54]}  Rxa6 {[%clk 0:02:10]} 25. Qc2 {[%clk 0:00:41]}  Qb4 {[%clk 0:02:02]} 26. Re3 {[%clk 0:00:35]}  g6 {[%clk 0:01:53]} 27. Ne2 {[%clk 0:00:31]}  d4 {[%clk 0:01:42]} 28. Re4 {[%clk 0:00:15]}  Qxb3 {[%clk 0:01:42]} 29. Qxb3 {[%clk 0:00:15]}  Rxb3 {[%clk 0:01:43]} 30. Nc1 {[%clk 0:00:13]}  Rb4 {[%clk 0:01:41]} 31. Nd3 {[%clk 0:00:12]}  Rbxa4 {[%clk 0:01:41]} 32. Rxa4 {[%clk 0:00:11]}  Rxa4 {[%clk 0:01:42]} 33. h4 {[%clk 0:00:11]}  h5 {[%clk 0:01:37]} 34. g4 {[%clk 0:00:10]}  hxg4 {[%clk 0:01:37]} 35. Rxg4 {[%clk 0:00:10]}  Kf8 {[%clk 0:01:37]} 36. h5 {[%clk 0:00:10]}  gxh5 {[%clk 0:01:37]} 37. Rg5 {[%clk 0:00:11]}  c4 {[%clk 0:01:36]} 38. Nf4 {[%clk 0:00:09]}  c3 {[%clk 0:01:34]} 39. Nd3 {[%clk 0:00:08]}  c2 {[%clk 0:01:33]} 40. Rxh5 {[%clk 0:00:09]}  Nc5 {[%clk 0:01:34]} 41. Nc1 {[%clk 0:00:08]}  Ra1 {[%clk 0:01:33]} 42. Kg2 {[%clk 0:00:08]}  Rxc1 {[%clk 0:01:34]} 43. Rh8+ {[%clk 0:00:07]}  Ke7 {[%clk 0:01:33]} 44. Rc8 {[%clk 0:00:08]}  Rg1+ {[%clk 0:01:32]} 45. Kf3 {[%clk 0:00:07]}  c1=Q {[%clk 0:01:32]} 46. Rc7+ {[%clk 0:00:05]}  Kd8 {[%clk 0:01:32]} 47. Rd7+ {[%clk 0:00:03]}  Kxd7 {[%clk 0:01:32]} 48. Ke2 {[%clk 0:00:01]}  Qd1# {[%clk 0:01:32]} 0-1


[Site "https://www.chess.com"]

[Event "Titled Tuesday Blitz February 07 Late 2023"]
[White "Klose, Eli"]
[Black "Gardezi, Arsal"]
[WhiteFideId "16242955"]
[BlackFideId "30949521"]
[WhiteElo "1519"]
[BlackElo "2093"]
[Result "1-0"]
[Round "07"]
[TimeControl "180+2"]
[Date "2023.02.07"]
[WhiteClock "0:00:13"]
[BlackClock "0:00:11"]

1. e4 {[%clk 0:02:58]}  e5 {[%clk 0:02:59]} 2. Nf3 {[%clk 0:02:51]}  Nc6 {[%clk 0:02:58]} 3. d4 {[%clk 0:02:51]}  exd4 {[%clk 0:02:58]} 4. Bc4 {[%clk 0:02:52]}  Bc5 {[%clk 0:02:55]} 5. Ng5 {[%clk 0:02:50]}  Nh6 {[%clk 0:02:53]} 6. Nxf7 {[%clk 0:02:50]}  Nxf7 {[%clk 0:02:40]} 7. Bxf7+ {[%clk 0:02:51]}  Kxf7 {[%clk 0:02:35]} 8. Qh5+ {[%clk 0:02:49]}  g6 {[%clk 0:02:35]} 9. Qxc5 {[%clk 0:02:50]}  d6 {[%clk 0:02:36]} 10. Qb5 {[%clk 0:02:48]}  Re8 {[%clk 0:02:30]} 11. Qd5+ {[%clk 0:02:46]}  Be6 {[%clk 0:02:24]} 12. Qb5 {[%clk 0:02:45]}  Bc8 {[%clk 0:02:15]} 13. O-O {[%clk 0:02:44]}  Rxe4 {[%clk 0:01:41]} 14. Qd5+ {[%clk 0:02:44]}  Re6 {[%clk 0:01:42]} 15. Nd2 {[%clk 0:02:41]}  Kg7 {[%clk 0:01:40]} 16. Nf3 {[%clk 0:02:38]}  Ne5 {[%clk 0:01:08]} 17. Nxd4 {[%clk 0:02:31]}  Re8 {[%clk 0:01:07]} 18. f4 {[%clk 0:02:15]}  Ng4 {[%clk 0:00:59]} 19. f5 {[%clk 0:02:06]}  Re5 {[%clk 0:00:21]} 20. Qf3 {[%clk 0:01:56]}  Qh4 {[%clk 0:00:19]} 21. h3 {[%clk 0:01:53]}  Nf6 {[%clk 0:00:18]} 22. fxg6 {[%clk 0:01:48]}  Qxd4+ {[%clk 0:00:17]} 23. Kh1 {[%clk 0:01:47]}  Rf5 {[%clk 0:00:17]} 24. Bf4 {[%clk 0:01:37]}  Nh5 {[%clk 0:00:16]} 25. gxh7 {[%clk 0:01:18]}  Nxf4 {[%clk 0:00:16]} 26. c3 {[%clk 0:01:08]}  Qf6 {[%clk 0:00:16]} 27. g4 {[%clk 0:01:01]}  Re5 {[%clk 0:00:09]} 28. Qg3 {[%clk 0:00:56]}  Re4 {[%clk 0:00:09]} 29. g5 {[%clk 0:00:41]}  Qf5 {[%clk 0:00:09]} 30. Qh4 {[%clk 0:00:41]}  Qxh3+ {[%clk 0:00:09]} 31. Qxh3 {[%clk 0:00:35]}  Bxh3 {[%clk 0:00:10]} 32. Rf2 {[%clk 0:00:35]}  Nd3 {[%clk 0:00:10]} 33. Rf3 {[%clk 0:00:33]}  Rg4 {[%clk 0:00:03]} 34. Rxd3 {[%clk 0:00:28]}  Bg2+ {[%clk 0:00:03]} 35. Kh2 {[%clk 0:00:27]}  Rxg5 {[%clk 0:00:04]} 36. Rg1 {[%clk 0:00:24]}  Rh8 {[%clk 0:00:04]} 37. Rxg2 {[%clk 0:00:21]}  Rxh7+ {[%clk 0:00:05]} 38. Kg1 {[%clk 0:00:22]}  Rxg2+ {[%clk 0:00:06]} 39. Kxg2 {[%clk 0:00:22]}  Kf6 {[%clk 0:00:06]} 40. Rd4 {[%clk 0:00:22]}  Ke5 {[%clk 0:00:07]} 41. a4 {[%clk 0:00:20]}  Rg7+ {[%clk 0:00:07]} 42. Kf3 {[%clk 0:00:20]}  Rh7 {[%clk 0:00:07]} 43. Ke3 {[%clk 0:00:18]}  Rh3+ {[%clk 0:00:07]} 44. Kd2 {[%clk 0:00:17]}  Rh2+ {[%clk 0:00:08]} 45. Kc1 {[%clk 0:00:17]}  c5 {[%clk 0:00:08]} 46. Rg4 {[%clk 0:00:17]}  Kd5 {[%clk 0:00:09]} 47. Kb1 {[%clk 0:00:15]}  Rh1+ {[%clk 0:00:08]} 48. Ka2 {[%clk 0:00:15]}  Rh2 {[%clk 0:00:09]} 49. Ka3 {[%clk 0:00:15]}  Rh1 {[%clk 0:00:09]} 50. Kb3 {[%clk 0:00:15]}  Ra1 {[%clk 0:00:09]} 51. Rg7 {[%clk 0:00:15]}  Kc6 {[%clk 0:00:08]} 52. Rg5 {[%clk 0:00:15]}  c4+ {[%clk 0:00:08]} 53. Kxc4 {[%clk 0:00:13]}  Rxa4+ {[%clk 0:00:09]} 54. b4 {[%clk 0:00:14]}  Ra3 {[%clk 0:00:08]} 55. Rg7 {[%clk 0:00:12]}  b5+ {[%clk 0:00:07]} 56. Kd4 {[%clk 0:00:12]}  Ra1 {[%clk 0:00:07]} 57. Rg5 {[%clk 0:00:12]}  Rd1+ {[%clk 0:00:07]} 58. Ke3 {[%clk 0:00:12]}  Rc1 {[%clk 0:00:07]} 59. Kd3 {[%clk 0:00:12]}  Rd1+ {[%clk 0:00:08]} 60. Kc2 {[%clk 0:00:13]}  Rf1 {[%clk 0:00:08]} 61. Rg7 {[%clk 0:00:13]}  Ra1 {[%clk 0:00:08]} 62. Kb3 {[%clk 0:00:13]}  a5 {[%clk 0:00:08]} 63. Kb2 {[%clk 0:00:13]}  Ra4 {[%clk 0:00:07]} 64. bxa5 {[%clk 0:00:10]}  Rxa5 {[%clk 0:00:08]} 65. Kc2 {[%clk 0:00:10]}  Ra2+ {[%clk 0:00:08]} 66. Kb3 {[%clk 0:00:10]}  Rf2 {[%clk 0:00:09]} 67. Rg5 {[%clk 0:00:11]}  Rf3 {[%clk 0:00:09]} 68. Kb4 {[%clk 0:00:11]}  Rf4+ {[%clk 0:00:08]} 69. Kb3 {[%clk 0:00:11]}  Re4 {[%clk 0:00:09]} 70. Rh5 {[%clk 0:00:11]}  d5 {[%clk 0:00:09]} 71. Rh8 {[%clk 0:00:10]}  Kc5 {[%clk 0:00:09]} 72. Rc8+ {[%clk 0:00:11]}  Kb6 {[%clk 0:00:10]} 73. Ra8 {[%clk 0:00:12]}  d4 {[%clk 0:00:09]} 74. cxd4 {[%clk 0:00:10]}  Rxd4 {[%clk 0:00:10]} 75. Rh8 {[%clk 0:00:10]}  Rf4 {[%clk 0:00:10]} 76. Kb2 {[%clk 0:00:10]}  Kc5 {[%clk 0:00:11]} 77. Rh2 {[%clk 0:00:11]}  Kb4 {[%clk 0:00:11]} 78. Rg2 {[%clk 0:00:11]}  Rf3 {[%clk 0:00:12]} 79. Rh2 {[%clk 0:00:12]}  Rf4 {[%clk 0:00:12]} 80. Rg2 {[%clk 0:00:12]}  Kc4 {[%clk 0:00:12]} 81. Rh2 {[%clk 0:00:12]}  b4 {[%clk 0:00:13]} 82. Rg2 {[%clk 0:00:13]}  Rd4 {[%clk 0:00:13]} 83. Rh2 {[%clk 0:00:12]}  Kb5 {[%clk 0:00:13]} 84. Rf2 {[%clk 0:00:13]}  Ka4 {[%clk 0:00:14]} 85. Rg2 {[%clk 0:00:13]}  b3 {[%clk 0:00:13]} 86. Rf2 {[%clk 0:00:13]}  Re4 {[%clk 0:00:13]} 87. Rg2 {[%clk 0:00:13]}  Kb4 {[%clk 0:00:12]} 88. Rf2 {[%clk 0:00:14]}  Rg4 {[%clk 0:00:12]} 89. Rf1 {[%clk 0:00:13]}  Rg2+ {[%clk 0:00:11]} 90. Kb1 {[%clk 0:00:13]}  Ka4 {[%clk 0:00:12]} 91. Re1 {[%clk 0:00:13]}  Ka3 {[%clk 0:00:12]} 92. Rf1 {[%clk 0:00:13]}  Ra2 {[%clk 0:00:11]} 93. Re1 {[%clk 0:00:13]}  b2 {[%clk 0:00:11]} 94. Re3+ {[%clk 0:00:13]}  Kb4 {[%clk 0:00:10]} 95. Kxa2 {[%clk 0:00:13]}  b1=Q+ {[%clk 0:00:11]} 1-0


[Site "https://www.chess.com"]

[Event "Titled Tuesday Blitz February 07 Late 2023"]
[White "Gurevich, Ilya"]
[Black "Sielecki, Christof"]
[WhiteFideId "2000628"]
[BlackFideId "4620437"]
[WhiteElo "2586"]
[BlackElo "2419"]
[Result "1/2-1/2"]
[Round "07"]
[TimeControl "180+2"]
[Date "2023.02.07"]
[WhiteClock "0:00:03"]
[BlackClock "0:00:11"]

1. d4 {[%clk 0:03:00]}  d5 {[%clk 0:02:59]} 2. c4 {[%clk 0:03:00]}  e6 {[%clk 0:03:00]} 3. Nc3 {[%clk 0:03:00]}  Nf6 {[%clk 0:03:00]} 4. Bg5 {[%clk 0:03:00]}  dxc4 {[%clk 0:03:00]} 5. e3 {[%clk 0:03:00]}  c5 {[%clk 0:02:59]} 6. Bxc4 {[%clk 0:02:59]}  cxd4 {[%clk 0:03:00]} 7. exd4 {[%clk 0:02:57]}  Nc6 {[%clk 0:02:59]} 8. Nf3 {[%clk 0:02:57]}  Be7 {[%clk 0:03:00]} 9. O-O {[%clk 0:02:57]}  O-O {[%clk 0:03:00]} 10. Rc1 {[%clk 0:02:53]}  a6 {[%clk 0:02:59]} 11. a4 {[%clk 0:02:52]}  h6 {[%clk 0:02:58]} 12. Be3 {[%clk 0:02:48]}  Qa5 {[%clk 0:02:49]} 13. Qe2 {[%clk 0:02:40]}  Rd8 {[%clk 0:02:46]} 14. Rfd1 {[%clk 0:02:40]}  Qh5 {[%clk 0:02:39]} 15. h3 {[%clk 0:02:35]}  Nd5 {[%clk 0:02:21]} 16. Nxd5 {[%clk 0:02:29]}  exd5 {[%clk 0:02:22]} 17. Bd3 {[%clk 0:02:29]}  Bf5 {[%clk 0:02:14]} 18. Ne5 {[%clk 0:02:10]}  Qxe2 {[%clk 0:02:10]} 19. Bxe2 {[%clk 0:02:10]}  Bd7 {[%clk 0:01:14]} 20. Nxd7 {[%clk 0:01:37]}  Rxd7 {[%clk 0:01:15]} 21. Rc3 {[%clk 0:01:13]}  Bd6 {[%clk 0:01:13]} 22. Bf3 {[%clk 0:01:07]}  Ne7 {[%clk 0:01:12]} 23. Rdc1 {[%clk 0:00:56]}  Rdd8 {[%clk 0:01:00]} 24. Kf1 {[%clk 0:00:50]}  f5 {[%clk 0:00:59]} 25. g3 {[%clk 0:00:39]}  Kf7 {[%clk 0:00:59]} 26. h4 {[%clk 0:00:35]}  Ke6 {[%clk 0:00:57]} 27. Ke2 {[%clk 0:00:32]}  Rac8 {[%clk 0:00:55]} 28. Kd3 {[%clk 0:00:28]}  Rc6 {[%clk 0:00:49]} 29. Rxc6 {[%clk 0:00:21]}  Nxc6 {[%clk 0:00:48]} 30. Re1 {[%clk 0:00:21]}  Nb4+ {[%clk 0:00:38]} 31. Kd2 {[%clk 0:00:17]}  Kf6 {[%clk 0:00:34]} 32. Rc1 {[%clk 0:00:15]}  Bb8 {[%clk 0:00:30]} 33. Rc3 {[%clk 0:00:06]}  Ke6 {[%clk 0:00:27]} 34. Rc1 {[%clk 0:00:05]}  Bd6 {[%clk 0:00:25]} 35. Re1 {[%clk 0:00:05]}  Kf6 {[%clk 0:00:23]} 36. Rc1 {[%clk 0:00:05]}  a5 {[%clk 0:00:21]} 37. Bg2 {[%clk 0:00:03]}  g5 {[%clk 0:00:20]} 38. hxg5+ {[%clk 0:00:03]}  hxg5 {[%clk 0:00:21]} 39. Rh1 {[%clk 0:00:03]}  f4 {[%clk 0:00:17]} 40. Rh6+ {[%clk 0:00:03]}  Ke7 {[%clk 0:00:18]} 41. Rh7+ {[%clk 0:00:02]}  Ke6 {[%clk 0:00:17]} 42. gxf4 {[%clk 0:00:02]}  gxf4 {[%clk 0:00:17]} 43. Bh3+ {[%clk 0:00:03]}  Kf6 {[%clk 0:00:13]} 44. Rh6+ {[%clk 0:00:03]}  Ke7 {[%clk 0:00:10]} 45. Rh7+ {[%clk 0:00:03]}  Kf6 {[%clk 0:00:10]} 46. Rh6+ {[%clk 0:00:03]}  Ke7 {[%clk 0:00:11]} 47. Rh7+ {[%clk 0:00:03]}  Kf6 {[%clk 0:00:11]} 1/2-1/2


[Site "https://www.chess.com"]

[Event "Titled Tuesday Blitz February 07 Late 2023"]
[White "Iljin, Timofey"]
[Black "Schroeder, Jan-Christian"]
[WhiteFideId "14110180"]
[BlackFideId "24662259"]
[WhiteElo "2329"]
[BlackElo "2553"]
[Result "0-1"]
[Round "07"]
[TimeControl "180+2"]
[Date "2023.02.07"]
[WhiteClock "0:00:01"]
[BlackClock "0:00:18"]

1. d4 {[%clk 0:03:00]}  Nf6 {[%clk 0:02:54]} 2. c4 {[%clk 0:03:01]}  e6 {[%clk 0:02:54]} 3. Nc3 {[%clk 0:03:01]}  Bb4 {[%clk 0:02:53]} 4. e3 {[%clk 0:03:02]}  c5 {[%clk 0:02:45]} 5. a3 {[%clk 0:03:02]}  Bxc3+ {[%clk 0:02:45]} 6. bxc3 {[%clk 0:03:03]}  b6 {[%clk 0:02:45]} 7. Bd3 {[%clk 0:03:04]}  Nc6 {[%clk 0:02:44]} 8. Ne2 {[%clk 0:03:01]}  O-O {[%clk 0:02:43]} 9. e4 {[%clk 0:03:01]}  Ne8 {[%clk 0:02:43]} 10. O-O {[%clk 0:03:01]}  Ba6 {[%clk 0:02:42]} 11. f4 {[%clk 0:03:00]}  f5 {[%clk 0:02:40]} 12. exf5 {[%clk 0:03:01]}  exf5 {[%clk 0:02:39]} 13. dxc5 {[%clk 0:03:02]}  bxc5 {[%clk 0:02:37]} 14. Be3 {[%clk 0:03:03]}  d6 {[%clk 0:02:36]} 15. Ng3 {[%clk 0:03:03]}  g6 {[%clk 0:02:32]} 16. Re1 {[%clk 0:03:04]}  Ng7 {[%clk 0:02:24]} 17. Nf1 {[%clk 0:03:01]}  Re8 {[%clk 0:02:22]} 18. Bf2 {[%clk 0:02:58]}  Qf6 {[%clk 0:02:05]} 19. Qc2 {[%clk 0:02:52]}  Rab8 {[%clk 0:01:48]} 20. Ne3 {[%clk 0:02:50]}  Ne7 {[%clk 0:01:47]} 21. Nd5 {[%clk 0:02:27]}  Nxd5 {[%clk 0:01:43]} 22. cxd5 {[%clk 0:02:28]}  Bxd3 {[%clk 0:01:33]} 23. Qxd3 {[%clk 0:02:29]}  Nh5 {[%clk 0:01:29]} 24. g3 {[%clk 0:02:24]}  Qf7 {[%clk 0:01:29]} 25. Rxe8+ {[%clk 0:01:53]}  Rxe8 {[%clk 0:01:27]} 26. Re1 {[%clk 0:01:54]}  Nf6 {[%clk 0:01:20]} 27. c4 {[%clk 0:01:54]}  Ne4 {[%clk 0:01:19]} 28. Rb1 {[%clk 0:01:52]}  h5 {[%clk 0:01:12]} 29. Be1 {[%clk 0:01:27]}  Kh7 {[%clk 0:01:05]} 30. Bc3 {[%clk 0:01:25]}  h4 {[%clk 0:01:01]} 31. gxh4 {[%clk 0:01:06]}  Qe7 {[%clk 0:00:59]} 32. Be1 {[%clk 0:01:07]}  Nf6 {[%clk 0:00:49]} 33. Bg3 {[%clk 0:01:04]}  Qf7 {[%clk 0:00:47]} 34. Qb3 {[%clk 0:00:50]}  Ng4 {[%clk 0:00:45]} 35. Qb8 {[%clk 0:00:43]}  Rxb8 {[%clk 0:00:43]} 36. Rxb8 {[%clk 0:00:44]}  Qf6 {[%clk 0:00:42]} 37. Rb7+ {[%clk 0:00:37]}  Kh6 {[%clk 0:00:40]} 38. Rb1 {[%clk 0:00:36]}  Qd4+ {[%clk 0:00:39]} 39. Kg2 {[%clk 0:00:36]}  Qe4+ {[%clk 0:00:39]} 40. Kh3 {[%clk 0:00:35]}  Qxb1 {[%clk 0:00:40]} 41. h5 {[%clk 0:00:36]}  Kxh5 {[%clk 0:00:38]} 42. Kg2 {[%clk 0:00:35]}  Qc2+ {[%clk 0:00:36]} 43. Kf3 {[%clk 0:00:36]}  Qd1+ {[%clk 0:00:35]} 44. Kg2 {[%clk 0:00:36]}  Qe2+ {[%clk 0:00:35]} 45. Kg1 {[%clk 0:00:37]}  Ne3 {[%clk 0:00:35]} 46. h3 {[%clk 0:00:01]}  Qg2# {[%clk 0:00:18]} 0-1


[Site "https://www.chess.com"]

[Event "Titled Tuesday Blitz February 07 Late 2023"]
[White "Dudzinski, Pawel"]
[Black "Vlassov, Nikolai"]
[WhiteFideId "1117890"]
[BlackFideId "4103360"]
[WhiteElo "2186"]
[BlackElo "2283"]
[Result "1-0"]
[Round "07"]
[TimeControl "180+2"]
[Date "2023.02.07"]
[WhiteClock "0:00:11"]
[BlackClock "0:00:14"]

1. e4 {[%clk 0:02:54]}  c5 {[%clk 0:02:59]} 2. c4 {[%clk 0:02:54]}  g6 {[%clk 0:02:55]} 3. Nc3 {[%clk 0:02:54]}  Bg7 {[%clk 0:02:54]} 4. g3 {[%clk 0:02:55]}  h5 {[%clk 0:02:53]} 5. h3 {[%clk 0:02:54]}  d6 {[%clk 0:02:52]} 6. Bg2 {[%clk 0:02:54]}  Nc6 {[%clk 0:02:51]} 7. Nge2 {[%clk 0:02:55]}  Nh6 {[%clk 0:02:24]} 8. Rb1 {[%clk 0:02:54]}  f5 {[%clk 0:02:23]} 9. d3 {[%clk 0:02:45]}  h4 {[%clk 0:02:20]} 10. exf5 {[%clk 0:02:30]}  gxf5 {[%clk 0:02:09]} 11. O-O {[%clk 0:02:04]}  hxg3 {[%clk 0:02:05]} 12. fxg3 {[%clk 0:01:58]}  Nd4 {[%clk 0:02:02]} 13. Be3 {[%clk 0:01:54]}  a6 {[%clk 0:01:51]} 14. Qd2 {[%clk 0:01:53]}  Rb8 {[%clk 0:01:40]} 15. Rbe1 {[%clk 0:01:48]}  b5 {[%clk 0:01:36]} 16. cxb5 {[%clk 0:01:10]}  axb5 {[%clk 0:01:34]} 17. Nd5 {[%clk 0:00:48]}  Nf7 {[%clk 0:01:22]} 18. Nxd4 {[%clk 0:00:41]}  cxd4 {[%clk 0:01:17]} 19. Bg5 {[%clk 0:00:40]}  Nxg5 {[%clk 0:01:08]} 20. Rxe7+ {[%clk 0:00:35]}  Qxe7 {[%clk 0:01:03]} 21. Nxe7 {[%clk 0:00:36]}  Nxh3+ {[%clk 0:00:34]} 22. Bxh3 {[%clk 0:00:33]}  Bh6 {[%clk 0:00:26]} 23. Qa5 {[%clk 0:00:18]}  Be3+ {[%clk 0:00:25]} 24. Kg2 {[%clk 0:00:18]}  Bb7+ {[%clk 0:00:24]} 25. Rf3 {[%clk 0:00:15]}  Kxe7 {[%clk 0:00:20]} 26. Qc7+ {[%clk 0:00:13]}  Kf6 {[%clk 0:00:16]} 27. Qxd6+ {[%clk 0:00:13]}  Kg5 {[%clk 0:00:16]} 28. Qe7+ {[%clk 0:00:11]}  Kg6 {[%clk 0:00:16]} 29. Bxf5+ {[%clk 0:00:11]}  Kh6 {[%clk 0:00:15]} 30. Qf6+ {[%clk 0:00:10]}  Kh5 {[%clk 0:00:14]} 31. Qg6# {[%clk 0:00:11]} 1-0


[Site "https://www.chess.com"]